fUSD/lending_fUSD_20240912
["ID","MTS","AMOUNT","RATE_DAILY","PERIOD"]
[337869161,1726170638210,-325.88,0.0001288,2]
[337869164,1726170638223,-436.35696285,0.0001288,2]
[337869166,1726170638236,-874.83664324,0.0001288,2]
[337869298,1726170639658,-40839.92340112,0.0001288,2]
[337869301,1726170639671,-4566.05272,0.0001288,2]
[337869318,1726170639819,-35592.50304387,0.0001288,2]
[337869332,1726170639959,-291.835,0.0001288,2]
[337869335,1726170639973,-271.82247635,0.0001288,2]
[337869653,1726170645864,-27193.53270314,0.0001288,2]
[337869654,1726170764031,250.0,0.00012112,2]
[337869656,1726170865836,294.75,0.00010126,2]
[337869657,1726170876365,292.44,0.00012038,2]
[337869658,1726171049384,154.97,0.00010959,2]
[337869659,1726171101962,195.2,0.00011997,2]
[337869660,1726171102178,195.2,0.00012027,2]
[337869661,1726171102432,195.2,0.00012057,2]
[337869662,1726171126289,2000.0,0.00012005,2]
[337869663,1726171130379,233.27,0.00012002,2]
[337869664,1726171158581,250.0,0.00011985,2]
[337869665,1726171172238,1000.0,0.00011977,2]
[337869667,1726171268656,250.0,0.00011982,2]
[337869668,1726171374371,287.6,0.00010106,2]
[337869669,1726171395493,292.44,0.00011995,2]
[337869671,1726171472916,250.0,0.00011953,2]
[337869672,1726171554782,151.94,0.00010959,2]
[337869676,1726171648375,250.0,0.00011941,2]
[337869680,1726171670568,200.0,0.0001193,2]
[337869681,1726171672158,233.27,0.0001193,2]
[337869683,1726171703055,-303.91448817,0.00012328,2]
[337869684,1726171703091,-287.6,0.00012369,2]
[337869685,1726171703117,-200.0,0.000126,4]
[337869686,1726171703143,-500.0,0.000127,4]
[337869687,1726171703178,-864.32091,0.0001276,2]
[337869688,1726171703203,-300.0,0.00012779,2]
[337869689,1726171703229,-1008.25976042,0.0001278,2]
[337869690,1726171703290,-3464.09515859,0.0001278,2]
[337869691,1726171703405,-191.63907935,0.0001278,2]
[337869692,1726171728370,-1399.040526,0.00012716,2]
[337869693,1726171728398,-307.12609913,0.0001278,2]
[337869694,1726171728429,-406.32592253,0.0001278,2]
[337869695,1726171728457,-412.59633353,0.000128,4]
[337869699,1726171831815,-150.0,0.00012713,2]
[337869700,1726171831825,-150.0,0.00012736,2]
[337869701,1726171831835,-150.0,0.00012758,2]
[337869702,1726171831845,-150.0,0.00012778,2]
[337869703,1726171831855,-150.0,0.00012778,2]
[337869704,1726171831864,-113.503638,0.00012779,2]
[337869705,1726171831876,-36.496362,0.00012779,2]
[337869706,1726171831886,-9745.51281738,0.0001278,2]
[337869707,1726171831895,-150.0,0.00012794,2]
[337869708,1726171831905,-150.0,0.00012798,2]
[337869709,1726171831915,-387.40366647,0.000128,4]
[337869710,1726171831925,-150.0,0.00012816,2]
[337869711,1726171831935,-499.99,0.00012816,2]
[337869712,1726171831944,-150.0,0.0001282,2]
[337869713,1726171831954,-150.0,0.0001282,2]
[337869714,1726171831963,-150.0,0.00012837,2]
[337869715,1726171831973,-274.23202314,0.00012838,2]
[337869716,1726171831982,-150.0,0.00012846,2]
[337869717,1726171831992,-300.0,0.00012859,2]
[337869718,1726171832002,-1003.0,0.0001286,2]
[337869719,1726171832011,-1004.0,0.0001286,2]
[337869720,1726171832021,-1000.0,0.0001286,2]
[337869721,1726171832030,-1000.0,0.0001287,2]
[337869722,1726171832039,-1000.0,0.0001287,2]
[337869723,1726171832049,-1000.0,0.0001287,2]
[337869724,1726171832059,-1000.0,0.0001287,3]
[337869725,1726171832068,-1000.0,0.0001287,3]
[337869726,1726171832077,-1000.0,0.0001287,2]
[337869727,1726171832086,-1000.0,0.0001287,3]
[337869728,1726171832096,-785.01,0.0001287,2]
[337869729,1726171832106,-158.21,0.0001287,2]
[337869730,1726171832116,-150.0,0.00012878,2]
[337869731,1726171832126,-500.0,0.00012879,2]
[337869732,1726171832135,-187.47513769,0.00012879,2]
[337869733,1726171832146,-500.0,0.00012879,2]
[337869734,1726171832155,-324.95836226,0.00012879,2]
[337869735,1726171832165,-240.16,0.00012879,2]
[337869736,1726171832175,-210.91,0.00012879,2]
[337869737,1726171832185,-68949.94267948,0.0001288,2]
[337869738,1726171832196,-40198.917706,0.0001288,2]
[337869739,1726171832208,-920.06431593,0.0001288,2]
[337869740,1726171832219,-3132.3393828,0.0001288,2]
[337869741,1726171832233,-784.98522457,0.0001288,2]
[337869742,1726171832248,-3987.45282922,0.0001288,2]
[337869743,1726171832259,-432.92,0.0001288,2]
[337869744,1726171832273,-472476.6223117,0.0001288,2]
[337869745,1726171832286,-500.0,0.0001288,2]
[337869746,1726171832297,-812.9464343,0.0001288,2]
[337869747,1726171832321,-1435.23226309,0.0001288,2]
[337869748,1726171832331,-3164.75000067,0.0001288,2]
[337869749,1726171832342,-913.37470917,0.0001288,2]
[337869750,1726171832354,-704.92261432,0.0001288,2]
[337869751,1726171832366,-2138.831207,0.0001288,2]
[337869752,1726171832381,-653.18224521,0.0001288,2]
[337869756,1726171837863,-1606.73102151,0.0001288,2]
[337869757,1726171837875,-1989.47898931,0.0001288,2]
[337869758,1726171837886,-858.62753416,0.0001288,2]
[337869759,1726171837915,-3181.17244625,0.0001288,2]
[337869784,1726171839977,-712.28682539,0.0001288,2]
[337869785,1726171840032,-2775.94000765,0.0001288,2]
[337869786,1726171840045,-1669.33501762,0.0001288,2]
[337869787,1726171840058,-857.8964994,0.0001288,2]
[337869788,1726171840090,-1165.1529486,0.0001288,2]
[337869789,1726171840102,-271.91749008,0.0001288,2]
[337869790,1726171840144,-895.93521647,0.0001288,2]
[337869836,1726171843555,-485.61189303,0.0001288,2]
[337869839,1726171843567,-74018.94851665,0.0001288,2]
[337869840,1726171843576,-720.26742,0.0001288,2]
[337869842,1726171843585,-2000.0,0.0001288,2]
[337869844,1726171843595,-150.0,0.00012889,2]
[337869846,1726171843605,-3734.97,0.000129,2]
[337869848,1726171843614,-166.39250321,0.000129,2]
[337869850,1726171843623,-427.76,0.000129,2]
[337869852,1726171843633,-150.0,0.000129,2]
[337869854,1726171843642,-182.9,0.000129,2]
[337869856,1726171843651,-752.67,0.000129,2]
[337869858,1726171843660,-422.38,0.000129,2]
[337869860,1726171843670,-150.0,0.000129,2]
[337869862,1726171843679,-427.76,0.000129,2]
[337869864,1726171843688,-150.0,0.000129,2]
[337869865,1726171843697,-752.67,0.000129,2]
[337869867,1726171843706,-422.38,0.000129,2]
[337869869,1726171843715,-427.76,0.000129,2]
[337869871,1726171843725,-422.38,0.000129,2]
[337869873,1726171843735,-752.67,0.000129,2]
[337869875,1726171843744,-150.0,0.000129,2]
[337869877,1726171843753,-166.06501283,0.000129,2]
[337869879,1726171843763,-150.0,0.000129,2]
[337869881,1726171843772,-422.38,0.000129,2]
[337869883,1726171843781,-152.07,0.000129,2]
[337869885,1726171843790,-752.67,0.000129,2]
[337869886,1726171843799,-752.67,0.000129,2]
[337869888,1726171843808,-752.67,0.000129,2]
[337869890,1726171843818,-290.18,0.000129,2]
[337869892,1726171843826,-1000.0,0.000129,4]
[337869894,1726171843836,-1327.01477441,0.000129,2]
[337869896,1726171843845,-150.0,0.00012908,2]
[337869897,1726171843854,-3800.74,0.00012911,2]
[337869899,1726171843864,-150.0,0.00012919,2]
[337869901,1726171843873,-150.0,0.00012929,2]
[337869903,1726171843883,-150.0,0.00012929,2]
[337869905,1726171843892,-150.0,0.0001296,2]
[337869907,1726171843901,-150.0,0.00012968,2]
[337869909,1726171843911,-150.0,0.00012969,2]
[337869911,1726171843920,-150.0,0.0001297,2]
[337869913,1726171843930,-150.0,0.00012971,2]
[337869915,1726171843939,-158.21,0.0001299,2]
[337869917,1726171843950,-9745.51281731,0.00012993,2]
[337869919,1726171843959,-225.69934709,0.00012999,2]
[337869921,1726171843969,-10604.00758084,0.00012999,2]
[337869923,1726171843978,-850.0,0.00013,2]
[337869925,1726171843987,-132400.42361143,0.00013,2]
[337869927,1726171843997,-1000671.32839462,0.00013,2]
[337869931,1726171844026,-538.67,0.00013,2]
[337869934,1726171844049,-585.8193,0.00013,2]
[337870098,1726171845836,-343.53915486,0.00013,2]
[337870104,1726171845888,-10467.587881,0.00013,2]
[337870111,1726171845945,-416.0689448,0.00013,2]
[337870118,1726171845999,-522.01898272,0.00013,2]
[337870130,1726171846107,-40810.84839218,0.00013,2]
[337870132,1726171846119,-12588.6223722,0.00013,2]
[337870302,1726171897280,266.43,0.0001028,2]
[337870305,1726171983397,4232.89,0.00011712,2]
[337870306,1726172017528,250.0,0.00011711,2]
[337870307,1726172019587,250.0,0.00011711,2]
[337870308,1726172047283,250.0,0.00011711,2]
[337870309,1726172103719,150.25,0.00011713,2]
[337870310,1726172190537,250.0,0.00011712,2]
[337870311,1726172190977,1050.0,0.00011,2]
[337870312,1726172228411,160.08,0.00011712,2]
[337870313,1726172354587,1000.0,0.00011711,2]
[337870314,1726172396703,150.0,0.00011711,2]
[337870315,1726172422910,210.68,0.00011711,2]
[337870316,1726172502110,260.7,9.79e-05,2]
[337870317,1726172502373,260.7,0.00012054,2]
[337870318,1726172527509,250.0,0.00011707,2]
[337870320,1726172608215,395.37,0.00010959,2]
[337870321,1726172702560,150.0,0.00011688,2]
[337870322,1726172721752,250.0,0.00011764,2]
[337870594,1726172859153,250.0,0.00011756,2]
[337870598,1726172931949,200.0,0.00011758,2]
[337870624,1726173032013,-174.73,0.00012192,2]
[337870625,1726173032023,-355.36,0.00012202,2]
[337870626,1726173032033,-309.12568449,0.0001268,2]
[337870627,1726173032044,-296.50497832,0.0001268,2]
[337870628,1726173032054,-174.73,0.0001269,2]
[337870629,1726173032063,-128.40426181,0.0001269,2]
[337870630,1726173032099,-46.32573819,0.0001269,2]
[337870631,1726173032110,-389.37570314,0.00012695,2]
[337870632,1726173032119,-150.0,0.00012699,2]
[337870633,1726173032129,-1638.0,0.000127,2]
[337870634,1726173032138,-1703.0,0.000127,2]
[337870635,1726173032148,-1000.0,0.000127,2]
[337870636,1726173032158,-1781.0,0.000127,2]
[337870637,1726173032168,-789.58,0.000127,2]
[337870638,1726173032177,-2701.73,0.000127,2]
[337870639,1726173032187,-174.73,0.00012719,2]
[337870640,1726173032196,-150.0,0.00012727,2]
[337870641,1726173032206,-499.99,0.00012727,2]
[337870642,1726173032215,-150.0,0.00012729,2]
[337870643,1726173032225,-13852.5,0.00012729,2]
[337870644,1726173032234,-150.0,0.00012731,2]
[337870645,1726173032244,-150.0,0.00012733,2]
[337870646,1726173032254,-150.0,0.00012737,2]
[337870647,1726173032264,-150.0,0.0001274,2]
[337870648,1726173032274,-150.0,0.00012741,2]
[337870649,1726173032283,-150.0,0.00012742,2]
[337870650,1726173032293,-175.76798512,0.00012743,2]
[337870651,1726173032302,-150.0,0.00012752,2]
[337870652,1726173032312,-150.0,0.00012759,2]
[337870653,1726173032322,-150.0,0.0001276,2]
[337870654,1726173032332,-150.0,0.0001276,2]
[337870655,1726173032341,-150.0,0.0001276,2]
[337870656,1726173032351,-150.0,0.00012762,2]
[337870657,1726173032362,-150.0,0.00012764,2]
[337870658,1726173032371,-504.81878064,0.00012773,2]
[337870659,1726173032381,-150.0,0.00012774,2]
[337870660,1726173032390,-156.4355,0.0001278,2]
[337870661,1726173032399,-3098.9231,0.0001278,2]
[337870662,1726173032409,-99186.3326,0.0001278,2]
[337870663,1726173032418,-12220.6028,0.0001278,2]
[337870664,1726173032427,-64808.17478146,0.0001278,2]
[337870665,1726173032439,-588.01158738,0.0001278,2]
[337870666,1726173032455,-1001.07908928,0.0001278,2]
[337870667,1726173032475,-329.14260328,0.0001278,2]
[337870668,1726173032486,-300.0,0.0001278,2]
[337870669,1726173035290,242.22,9.989e-05,2]
[337870670,1726173037900,-242.22,0.00012253,2]
[337870671,1726173037909,-416.6570642,0.0001269,2]
[337870672,1726173037922,-1999.55886439,0.0001269,2]
[337870674,1726173037932,-608.42401499,0.0001278,2]
[337870676,1726173038019,-1357.22542988,0.0001278,2]
[337870677,1726173038030,-2084.0327375,0.0001278,2]
[337870678,1726173038042,-2158.98320904,0.0001278,2]
[337870679,1726173038054,-2166.78342138,0.0001278,2]
[337870680,1726173038134,-6343.80348218,0.0001278,2]
[337870681,1726173038145,-982.9940451,0.0001278,2]
[337870682,1726173038156,-285.49172499,0.0001278,2]
[337870683,1726173038167,-282.04696975,0.0001278,2]
[337870684,1726173038179,-566.76354058,0.0001278,2]
[337870685,1726173038203,-1532.4846,0.0001278,2]
[337870686,1726173038215,-2355.0,0.0001278,2]
[337870863,1726173039966,-414.4410234,0.0001278,2]
[337870865,1726173039978,-984.9210532,0.0001278,2]
[337870871,1726173040026,-3408.16965506,0.0001278,2]
[337870873,1726173040037,-1345.2272652,0.0001278,2]
[337870879,1726173040084,-939.63137312,0.0001278,2]
[337870881,1726173040096,-1561.6,0.0001278,2]
[337870883,1726173040108,-1850.0,0.0001278,2]
[337870886,1726173040119,-752.74558656,0.0001278,2]
[337870889,1726173040147,-512.96828931,0.0001278,2]
[337870892,1726173040159,-3281.9,0.0001278,2]
[337870894,1726173040170,-112708.90328738,0.0001278,2]
[337870896,1726173040182,-3403.60735412,0.0001278,2]
[337870898,1726173040193,-2476.73398211,0.0001278,2]
[337870900,1726173040204,-902.16144431,0.0001278,2]
[337870903,1726173040215,-473.49053888,0.0001278,2]
[337870905,1726173040227,-1825.57743907,0.0001278,2]
[337870907,1726173040238,-1922.61,0.0001278,2]
[337870910,1726173040264,-2954.1894928,0.0001278,2]
[337870912,1726173040275,-2242.35735466,0.0001278,2]
[337870915,1726173040286,-505.53116172,0.0001278,2]
[337870919,1726173040319,-2141.25728077,0.0001278,2]
[337870921,1726173040330,-3115.28658154,0.0001278,2]
[337870923,1726173040340,-1161.19523893,0.0001278,2]
[337870926,1726173040352,-662.70634916,0.0001278,2]
[337870928,1726173040365,-630.25841339,0.0001278,2]
[337870930,1726173040377,-795.57319824,0.0001278,2]
[337871136,1726173043017,-1740.63,0.0001278,2]
[337871182,1726173044359,-2544.70154031,0.0001278,2]
[337871183,1726173044371,-237.88905997,0.0001278,2]
[337871184,1726173044380,-150.0,0.0001278,2]
[337871185,1726173044389,-150.0,0.0001278,2]
[337871186,1726173044399,-150.0,0.00012783,2]
[337871187,1726173044408,-150.0,0.00012785,2]
[337871188,1726173044418,-150.0,0.00012793,2]
[337871189,1726173044427,-150.0,0.00012796,2]
[337871190,1726173044436,-1000.0,0.000128,2]
[337871191,1726173044446,-150.0,0.00012801,2]
[337871192,1726173044456,-150.0,0.00012803,2]
[337871193,1726173044465,-150.0,0.00012806,2]
[337871194,1726173044474,-1096.37748728,0.0001281,2]
[337871195,1726173044484,-150.0,0.00012814,2]
[337871196,1726173044493,-150.0,0.00012815,2]
[337871197,1726173044503,-150.0,0.00012821,2]
[337871198,1726173044513,-150.0,0.00012826,2]
[337871199,1726173044523,-1149.10553777,0.00012826,2]
[337871200,1726173044536,-350.89446223,0.00012826,2]
[337871201,1726173044545,-150.0,0.00012836,2]
[337871202,1726173044556,-150.0,0.00012837,2]
[337871203,1726173044566,-150.0,0.00012838,2]
[337871204,1726173044576,-150.0,0.00012847,2]
[337871205,1726173044586,-150.0,0.00012848,2]
[337871206,1726173044595,-150.0,0.00012848,2]
[337871207,1726173044604,-150.0,0.00012849,2]
[337871208,1726173044615,-150.0,0.0001285,2]
[337871209,1726173044626,-150.0,0.00012857,2]
[337871210,1726173044638,-141.85901461,0.0001286,2]
[337871218,1726173046080,-8.14098539,0.0001286,2]
[337871219,1726173046090,-150.0,0.00012862,2]
[337871220,1726173046099,-150.0,0.00012862,2]
[337871221,1726173046108,-41.85778889,0.00012864,2]
[337871222,1726173046120,-108.14221111,0.00012864,2]
[337871223,1726173046130,-150.0,0.0001287,2]
[337871224,1726173046139,-600.22285,0.0001287,2]
[337871225,1726173046149,-150.0,0.00012872,2]
[337871226,1726173046159,-150.0,0.00012872,2]
[337871227,1726173046168,-150.0,0.00012873,2]
[337871228,1726173046178,-62.51551582,0.00012882,2]
[337871229,1726173046190,-87.48448418,0.00012882,2]
[337871230,1726173046199,-150.0,0.00012882,2]
[337871231,1726173046209,-150.0,0.00012885,2]
[337871232,1726173046218,-150.0,0.00012898,2]
[337871233,1726173046227,-150.0,0.00012898,2]
[337871234,1726173046237,-150.0,0.00012898,2]
[337871235,1726173046246,-22.10834829,0.00012899,2]
[337871236,1726173046259,-127.89165171,0.00012899,2]
[337871237,1726173046268,-159.99602681,0.000129,2]
[337871238,1726173046279,-19.73726621,0.000129,2]
[337871239,1726173046289,-1331.9446,0.000129,2]
[337871240,1726173046299,-862.74,0.000129,2]
[337871241,1726173046309,-150.0,0.000129,2]
[337871242,1726173046319,-1106.64,0.000129,2]
[337871243,1726173046328,-166.06501283,0.000129,2]
[337871244,1726173046337,-965.52826794,0.000129,2]
[337871245,1726173046347,-1000.0,0.000129,2]
[337871246,1726173046357,-1248.46189208,0.000129,2]
[337871247,1726173046367,-150.0,0.00012915,2]
[337871248,1726173046377,-150.0,0.00012926,2]
[337871249,1726173046387,-150.0,0.00012926,2]
[337871250,1726173046397,-150.0,0.00012926,2]
[337871251,1726173046407,-150.0,0.00012937,2]
[337871252,1726173046416,-150.0,0.00012939,2]
[337871253,1726173046426,-150.0,0.00012948,2]
[337871254,1726173046435,-150.0,0.00012952,2]
[337871255,1726173046444,-150.0,0.00012955,2]
[337871256,1726173046454,-150.0,0.00012956,2]
[337871257,1726173046464,-150.0,0.00012968,2]
[337871258,1726173046474,-150.0,0.00012969,2]
[337871259,1726173046483,-150.0,0.00012971,2]
[337871260,1726173046493,-500.0,0.00012973,2]
[337871261,1726173046503,-500.0,0.00012973,2]
[337871262,1726173046513,-150.0,0.00012974,2]
[337871263,1726173046523,-150.0,0.00012977,2]
[337871264,1726173046532,-150.0,0.00012979,2]
[337871265,1726173046543,-150.0,0.0001298,2]
[337871266,1726173046552,-156.13,0.0001298,2]
[337871267,1726173046563,-150.0,0.00012981,2]
[337871268,1726173046573,-150.0,0.00012985,2]
[337871269,1726173046583,-500.0,0.00012989,2]
[337871270,1726173046594,-397.82766602,0.00012989,2]
[337871271,1726173046604,-7003.83741392,0.0001299,2]
[337871272,1726173046624,-5923.552,0.0001299,2]
[337871273,1726173046636,-904.23596,0.0001299,2]
[337871274,1726173046684,-49150.96274423,0.0001299,2]
[337871275,1726173046703,-335.451,0.0001299,2]
[337871341,1726173049493,250.0,0.00011906,2]
[337871755,1726173175558,347.16,0.00012062,2]
[337871756,1726173202864,194.73,0.00010959,2]
[337871757,1726173234828,250.0,0.00012074,2]
[337871758,1726173352241,280.27,0.0001204,2]
[337871759,1726173460186,250.0,0.00012023,2]
[337871760,1726173472037,840.0,0.00012023,2]
[337871761,1726173530535,227.14,0.00010136,2]
[337871763,1726173704359,157.76,0.00010959,2]
[337871764,1726173749036,353.72,0.00011965,2]
[337871765,1726173799804,250.0,0.00011986,2]
[337871766,1726173824836,188.59,0.00011986,2]
[337871767,1726173847146,783.027909,0.00012115,2]
[337871768,1726173852457,156.79,0.00011997,2]
[337871771,1726173975688,328.0,0.00012049,2]
[337871772,1726173996126,1050.0,0.00011,2]
[337871773,1726174018198,224.44,0.00010142,2]
[337871774,1726174018801,215.08,0.0001206,2]
[337871788,1726174226162,154.97,0.00010959,2]
[337871789,1726174232101,-224.44,0.00012406,2]
[337871790,1726174232110,-200.0,0.000126,4]
[337871791,1726174232119,-150.0,0.00012685,2]
[337871792,1726174232128,-150.0,0.00012699,2]
[337871793,1726174232137,-150.0,0.000127,2]
[337871794,1726174232147,-304.08,0.000127,2]
[337871795,1726174232156,-169.82,0.000127,2]
[337871796,1726174232165,-357.66,0.000127,2]
[337871797,1726174232175,-427.76,0.000127,2]
[337871798,1726174232184,-150.0,0.000127,2]
[337871799,1726174232193,-150.0,0.000127,2]
[337871800,1726174232202,-242.99,0.000127,2]
[337871801,1726174232211,-150.0,0.000127,2]
[337871802,1726174232220,-189.24,0.000127,2]
[337871803,1726174232230,-150.0,0.000127,2]
[337871804,1726174232239,-150.0,0.000127,2]
[337871805,1726174232248,-150.0,0.000127,2]
[337871806,1726174232257,-150.0,0.000127,2]
[337871807,1726174232266,-150.0,0.000127,2]
[337871808,1726174232275,-150.0,0.000127,2]
[337871809,1726174232284,-422.38,0.000127,2]
[337871810,1726174232293,-427.76,0.000127,2]
[337871811,1726174232303,-752.67,0.000127,2]
[337871812,1726174232312,-357.66,0.000127,2]
[337871813,1726174232321,-150.0,0.000127,2]
[337871814,1726174232330,-752.67,0.000127,2]
[337871815,1726174232340,-150.0,0.000127,2]
[337871816,1726174232349,-422.38,0.000127,2]
[337871817,1726174232359,-427.76,0.000127,2]
[337871818,1726174232367,-150.0,0.000127,2]
[337871819,1726174232377,-150.0,0.000127,2]
[337871820,1726174232386,-357.66,0.000127,2]
[337871821,1726174232395,-150.0,0.000127,2]
[337871822,1726174232404,-150.0,0.000127,2]
[337871823,1726174232413,-150.0,0.000127,2]
[337871824,1726174232422,-150.0,0.000127,2]
[337871825,1726174232431,-150.0,0.000127,2]
[337871826,1726174232440,-357.66,0.000127,2]
[337871827,1726174232449,-752.67,0.000127,2]
[337871828,1726174232458,-150.0,0.000127,2]
[337871829,1726174232467,-427.76,0.000127,2]
[337871830,1726174232477,-422.38,0.000127,2]
[337871831,1726174232486,-150.0,0.000127,2]
[337871832,1726174232495,-500.0,0.000127,4]
[337871833,1726174232504,-292.5487,0.0001279,2]
[337871834,1726174232513,-150.0,0.000128,2]
[337871835,1726174232523,-150.0,0.000128,2]
[337871836,1726174232534,-150.0,0.000128,2]
[337871837,1726174232545,-150.0,0.000128,2]
[337871838,1726174232555,-150.0,0.000128,2]
[337871839,1726174232566,-150.0,0.000128,2]
[337871840,1726174232577,-427.76,0.000128,2]
[337871841,1726174232587,-173.13,0.000128,2]
[337871842,1726174232597,-150.0,0.000128,2]
[337871843,1726174232606,-752.67,0.000128,2]
[337871844,1726174232615,-422.38,0.000128,2]
[337871845,1726174232624,-700.0,0.000128,4]
[337871846,1726174232633,-150.0,0.000128,2]
[337871847,1726174232642,-332.1,0.000128,2]
[337871848,1726174232651,-427.76,0.000128,2]
[337871849,1726174232660,-150.0,0.000128,2]
[337871850,1726174232669,-752.67,0.000128,2]
[337871851,1726174232679,-209.99,0.000128,2]
[337871852,1726174232688,-752.67,0.000128,2]
[337871853,1726174232697,-427.76,0.000128,2]
[337871854,1726174232706,-752.67,0.000128,2]
[337871855,1726174232716,-752.67,0.000128,2]
[337871856,1726174232725,-425.51,0.000128,2]
[337871857,1726174232734,-569.77912,0.0001286,2]
[337871858,1726174232743,-482.77,0.0001286,2]
[337871859,1726174232752,-552.5,0.0001289,2]
[337871860,1726174232761,-10428.15175557,0.0001289,2]
[337871861,1726174232770,-1118.4846,0.0001289,2]
[337871862,1726174232779,-53388.84121062,0.0001289,2]
[337871863,1726174232791,-460.43123519,0.0001289,2]
[337871864,1726174232803,-301.5568529,0.0001289,2]
[337871865,1726174232818,-1525.1233529,0.0001289,2]
[337871866,1726174232829,-2844.58904,0.0001289,2]
[337871867,1726174232841,-25281.39240839,0.0001289,2]
[337871868,1726174232850,-1000.0,0.0001289,2]
[337871869,1726174232859,-166.06501283,0.000129,2]
[337871870,1726174232868,-1000.0,0.000129,4]
[337871871,1726174232878,-3403.11319853,0.000129,2]
[337871872,1726174232887,-697.58667974,0.000129,2]
[337871873,1726174232896,-150.0,0.00012903,2]
[337871874,1726174232906,-580.2,0.00012903,2]
[337871875,1726174232915,-3757.83,0.0001291,2]
[337871876,1726174232924,-154.55,0.0001298,2]
[337871877,1726174232933,-192.128,0.00012989,2]
[337871878,1726174232942,-500.0,0.00012989,2]
[337871879,1726174232951,-500.0,0.00012989,2]
[337871880,1726174232960,-216.39659864,0.00012989,2]
[337871881,1726174232969,-33957.10136028,0.00012989,2]
[337871882,1726174232978,-71920.68702011,0.0001299,2]
[337871887,1726174238305,-267.7675,0.000126,2]
[337871903,1726174238595,256.41,9.977e-05,2]
[337871906,1726174240194,-528.83321755,0.000126,2]
[337871907,1726174240204,-59.58748245,0.0001299,2]
[337871908,1726174240252,-21343.13379714,0.0001299,2]
[337871909,1726174240263,-2396.58360006,0.0001299,2]
[337871910,1726174240439,-1150.62132042,0.0001299,2]
[337871911,1726174240457,-273.07693304,0.0001299,2]
[337871986,1726174243778,-3000.0206322,0.0001299,2]
[337872224,1726174246227,-762.48387392,0.0001299,2]
[337872246,1726174246338,-87032.56025311,0.0001299,2]
[337872270,1726174246448,-529.5997487,0.0001299,2]
[337872280,1726174246504,-535.01,0.0001299,2]
[337872637,1726174316206,250.0,0.00012157,2]
[337872640,1726174339266,154.66,0.00012141,2]
[337872641,1726174382868,292.97,0.00012128,2]
[337872642,1726174393418,250.0,0.00012141,2]
[337872643,1726174408487,239.29,0.00012149,2]
[337872644,1726174531420,209.5,0.00010322,2]
[337872645,1726174568872,238.0,0.00010322,2]
[337872646,1726174732747,152.98,0.00010959,2]
[337872647,1726174755731,170.92,9.646e-05,2]
[337872648,1726174864792,150.0,0.00011975,2]
[337872649,1726174880389,155.34132063,0.00012099,2]
[337872650,1726174918312,250.0,0.00011985,2]
[337872651,1726174927400,325.59,0.00011985,2]
[337872652,1726174997823,151.45,0.00012007,2]
[337872653,1726175026204,262.4,0.00011995,2]
[337872654,1726175037639,207.03,0.00010088,2]
[337872656,1726175103288,250.0,0.00012014,2]